fUST/lending_fUST_20250225
["ID","MTS","AMOUNT","RATE_DAILY","PERIOD"]
[354426275,1740485441262,-500.0,0.00063287,120]
[354426276,1740485441271,-500.0,0.00063287,120]
[354426277,1740485441280,-500.0,0.00063287,120]
[354426278,1740485441290,-578.89,0.00063287,120]
[354426279,1740485441299,-504.0629291,0.00063287,120]
[354426280,1740485441309,-500.0,0.00063287,120]
[354426281,1740485441318,-500.0,0.00063287,120]
[354426282,1740485441328,-500.0,0.00063287,120]
[354426283,1740485441337,-1999.03,0.00063287,120]
[354426284,1740485441346,-1172.97,0.00063287,120]
[354426285,1740485441357,-500.0,0.00063287,120]
[354426286,1740485441366,-500.0,0.00063287,120]
[354426287,1740485441375,-500.0,0.00063287,120]
[354426288,1740485441385,-500.0,0.00063287,120]
[354426289,1740485441396,-548.26,0.00063287,120]
[354426290,1740485441405,-500.0,0.00063287,120]
[354426291,1740485441415,-500.0,0.00063287,120]
[354426292,1740485441424,-1939.25,0.00063287,120]
[354426293,1740485441433,-587.13785029,0.00063287,120]
[354426294,1740485441443,-500.0,0.00063287,120]
[354426295,1740485441452,-500.0,0.00063287,120]
[354426296,1740485441461,-500.0,0.00063287,120]
[354426297,1740485441470,-500.0,0.00063287,120]
[354426298,1740485441480,-6398.6,0.00063287,120]
[354426299,1740485441489,-500.0,0.00063287,30]
[354426300,1740485441498,-500.0,0.00063287,120]
[354426301,1740485441508,-536.99,0.00063287,120]
[354426302,1740485441517,-500.0,0.00063287,120]
[354426303,1740485441583,-654.9,0.00063287,120]
[354426304,1740485441599,-500.0,0.00063287,120]
[354426305,1740485441612,-500.0,0.00063287,120]
[354426306,1740485441621,-177373.63,0.00063287,7]
[354426307,1740485441631,-1429.57,0.00063287,120]
[354426308,1740485441640,-500.0,0.00063287,120]
[354426309,1740485441650,-500.0,0.00063287,120]
[354426310,1740485441661,-609.5,0.00063287,120]
[354426311,1740485441672,-500.0,0.00063287,120]
[354426312,1740485441683,-500.0,0.00063287,120]
[354426313,1740485441692,-3033.53,0.00063287,120]
[354426314,1740485441703,-500.0,0.00063287,120]
[354426315,1740485441712,-500.0,0.00063287,120]
[354426316,1740485441722,-523.36,0.00063287,120]
[354426317,1740485441731,-500.0,0.00063287,120]
[354426318,1740485441741,-500.0,0.00063287,120]
[354426319,1740485441753,-500.0,0.00063287,120]
[354426320,1740485441764,-500.0,0.00063287,120]
[354426321,1740485441773,-510.31,0.00063287,120]
[354426322,1740485441782,-500.0,0.00063287,120]
[354426323,1740485441792,-566.57318996,0.00063287,120]
[354426324,1740485441801,-500.0,0.00063287,120]
[354426325,1740485441811,-884.39,0.00063287,120]
[354426326,1740485441821,-500.0,0.00063287,120]
[354426327,1740485441830,-1351.64,0.00063287,120]
[354426328,1740485441840,-500.0,0.00063287,120]
[354426329,1740485441849,-1374.68,0.00063287,120]
[354426330,1740485441859,-500.0,0.00063287,120]
[354426331,1740485441869,-500.0,0.00063287,120]
[354426332,1740485441878,-500.0,0.00063287,120]
[354426333,1740485441888,-250.51698514,0.00063287,120]
[354426334,1740485441897,-1393.49,0.00063287,120]
[354426335,1740485441907,-500.0,0.00063287,120]
[354426336,1740485441916,-602.23,0.00063287,120]
[354426337,1740485441926,-4727.75,0.00063287,120]
[354426338,1740485441935,-36054.27,0.00063287,120]
[354426339,1740485441945,-528.01,0.00063287,120]
[354426340,1740485441954,-500.0,0.00063287,120]
[354426341,1740485441964,-965.45,0.00063287,120]
[354426342,1740485441974,-500.0,0.00063938,15]
[354426343,1740485441984,-500.0,0.00063938,15]
[354426344,1740485441994,-500.0,0.00063938,15]
[354426345,1740485442004,-500.0,0.00063938,14]
[354426346,1740485442014,-163.44487158,0.00063938,15]
[354426347,1740485442023,-600.05806697,0.00063938,7]
[354426348,1740485442033,-502.25218083,0.00063938,15]
[354426349,1740485442042,-557.0,0.00063949,120]
[354426350,1740485442052,-500.0,0.0006433,120]
[354426351,1740485442062,-1086.37,0.0006433,120]
[354426352,1740485442071,-620.96,0.0006433,120]
[354426353,1740485442081,-956.7,0.0006433,120]
[354426354,1740485442090,-799.78,0.0006433,120]
[354426355,1740485442099,-1100.17,0.0006433,120]
[354426356,1740485442111,-500.0,0.0006433,120]
[354426357,1740485442120,-2352.71,0.0006433,120]
[354426358,1740485442130,-268.0,0.00064356,2]
[354426359,1740485442139,-1839.27,0.00064383,120]
[354426360,1740485442148,-2605.66,0.00064383,120]
[354426361,1740485442156,-500.0,0.00064383,120]
[354426362,1740485442166,-1329.66,0.00064383,120]
[354426363,1740485442176,-14313.73,0.00064383,120]
[354426364,1740485442185,-1386.02,0.00064383,120]
[354426365,1740485442194,-500.0,0.00064383,120]
[354426366,1740485442203,-588.0,0.00064383,120]
[354426367,1740485442213,-831.48,0.00064383,120]
[354426368,1740485442222,-959.53,0.00064383,120]
[354426369,1740485442231,-500.0,0.00064383,120]
[354426370,1740485442240,-500.0,0.00064383,30]
[354426371,1740485442249,-857.59,0.00064383,120]
[354426372,1740485442258,-2706.68,0.00064383,3]
[354426373,1740485442268,-652.3,0.00064383,120]
[354426374,1740485442277,-5286.16,0.00064383,120]
[354426375,1740485442287,-843.41,0.00064383,120]
[354426376,1740485442297,-500.0,0.00064383,120]
[354426377,1740485442306,-500.0,0.00064383,120]
[354426378,1740485442315,-500.0,0.00064383,120]
[354426379,1740485442325,-1577.56,0.00064383,120]
[354426380,1740485442334,-718.43,0.00064383,120]
[354426381,1740485442343,-598.47,0.00064383,120]
[354426382,1740485442353,-500.0,0.00064383,120]
[354426383,1740485442364,-500.0,0.00064383,120]
[354426384,1740485442373,-500.0,0.00064383,120]
[354426385,1740485442383,-674.39,0.00064383,120]
[354426386,1740485442392,-596.18,0.00064383,120]
[354426387,1740485442402,-500.0,0.00064383,120]
[354426388,1740485442412,-500.0,0.00064383,120]
[354426389,1740485442421,-919.46,0.00064383,120]
[354426390,1740485442431,-523.17,0.00064656,120]
[354426391,1740485442504,-174461.4568919,0.00064657,120]
[354426392,1740485442514,-19032.88665599,0.00064657,61]
[354426393,1740485442524,-500.0,0.00064657,120]
[354426394,1740485442533,-500.0,0.00064657,120]
[354426395,1740485442542,-500.0,0.00064657,120]
[354426396,1740485442552,-1014.42,0.00064657,120]
[354426397,1740485442561,-504.33146787,0.00064657,120]
[354426398,1740485442570,-500.0,0.00064657,120]
[354426399,1740485442580,-500.0,0.00064657,120]
[354426400,1740485442589,-500.0,0.00064657,120]
[354426401,1740485442598,-373.26,0.00064657,120]
[354426402,1740485442611,-500.0,0.00064657,120]
[354426403,1740485442620,-500.0,0.00064657,120]
[354426404,1740485442630,-500.0,0.00064657,120]
[354426405,1740485442640,-250.0,0.00064657,120]
[354426406,1740485442649,-500.0,0.00064657,120]
[354426407,1740485442661,-500.0,0.00064657,120]
[354426408,1740485442672,-500.0,0.00064657,120]
[354426409,1740485442682,-500.0,0.00064657,120]
[354426410,1740485442692,-36926.2,0.00064657,6]
[354426411,1740485442702,-500.0,0.00064657,120]
[354426412,1740485442713,-500.0,0.00064657,120]
[354426413,1740485442722,-1053.35,0.00064657,120]
[354426414,1740485442731,-500.0,0.00064657,120]
[354426415,1740485442742,-500.0,0.00064657,120]
[354426416,1740485442752,-500.0,0.00064657,120]
[354426417,1740485442761,-500.0,0.00064657,120]
[354426418,1740485442771,-578.89,0.00064657,120]
[354426419,1740485442780,-504.41674729,0.00064657,120]
[354426420,1740485442790,-503.99422419,0.00064657,120]
[354426421,1740485442799,-500.0,0.00064657,120]
[354426422,1740485442809,-1999.03,0.00064657,120]
[354426423,1740485442818,-1172.97,0.00064657,120]
[354426424,1740485442827,-369.21222569,0.00064657,120]
[354426425,1740485442837,-500.0,0.00064657,120]
[354426426,1740485442846,-500.0,0.00064657,120]
[354426427,1740485442856,-500.0,0.00064657,120]
[354426428,1740485442865,-548.26,0.00064657,120]
[354426429,1740485442875,-500.0,0.00064657,120]
[354426430,1740485442884,-500.0,0.00064657,120]
[354426431,1740485442894,-1939.25,0.00064657,120]
[354426432,1740485442905,-500.0,0.00064657,120]
[354426433,1740485442926,-500.0,0.00064657,120]
[354426434,1740485442942,-500.0,0.00064657,120]
[354426435,1740485442964,-500.0,0.00064657,120]
[354426436,1740485442984,-6398.6,0.00064657,120]
[354426437,1740485443002,-500.0,0.00064657,30]
[354426438,1740485443020,-503.78470184,0.00064657,120]
[354426439,1740485443035,-536.99,0.00064657,120]
[354426440,1740485443052,-500.0,0.00064657,120]
[354426441,1740485443072,-654.9,0.00064657,120]
[354426442,1740485443093,-500.0,0.00064657,120]
[354426444,1740485443106,-500.0,0.00064657,120]
[354426445,1740485443126,-177373.63,0.00064657,7]
[354426446,1740485443141,-1429.57,0.00064657,120]
[354426447,1740485443158,-500.0,0.00064657,120]
[354426448,1740485443172,-500.0,0.00064657,120]
[354426449,1740485443188,-609.5,0.00064657,120]
[354426450,1740485443205,-500.0,0.00064657,120]
[354426451,1740485443221,-500.0,0.00064657,120]
[354426452,1740485443236,-3033.53,0.00064657,120]
[354426455,1740485443253,-500.0,0.00064657,120]
[354426456,1740485443269,-500.0,0.00064657,120]
[354426457,1740485443286,-523.36,0.00064657,120]
[354426458,1740485443302,-500.0,0.00064657,120]
[354426459,1740485443318,-601.09381528,0.00064657,120]
[354426460,1740485443335,-500.0,0.00064657,120]
[354426461,1740485443351,-546.90173849,0.00064657,120]
[354426462,1740485443369,-510.31,0.00064657,120]
[354426464,1740485443385,-510.39530762,0.00064657,120]
[354426465,1740485443402,-500.0,0.00064657,120]
[354426467,1740485443418,-884.39,0.00064657,120]
[354426469,1740485443434,-500.0,0.00064657,120]
[354426471,1740485443449,-1351.64,0.00064657,120]
[354426472,1740485443466,-500.0,0.00064657,120]
[354426473,1740485443483,-1374.68,0.00064657,120]
[354426474,1740485443500,-500.0,0.00064657,120]
[354426475,1740485443515,-500.0,0.00064657,120]
[354426476,1740485443527,-500.0,0.00064657,120]
[354426477,1740485443538,-1393.49,0.00064657,120]
[354426478,1740485443548,-500.0,0.00064657,120]
[354426479,1740485443669,-602.23,0.00064657,120]
[354426480,1740485443687,-4727.75,0.00064657,120]
[354426481,1740485443697,-36054.27,0.00064657,120]
[354426482,1740485443706,-528.01,0.00064657,120]
[354426483,1740485443717,-492.76147348,0.00064657,120]
[354426484,1740485443726,-965.45,0.00064657,120]
[354426485,1740485443735,-151.0,0.00064657,120]
[354426486,1740485443745,-557.0,0.00064909,120]
[354426487,1740485443754,-505.48305452,0.00064963,10]
[354426488,1740485443765,-500.0,0.00064963,15]
[354426489,1740485443774,-1900.0,0.00065,20]
[354426490,1740485443783,-2000.0,0.00065,120]
[354426491,1740485443792,-500.0,0.00065147,2]
[354426492,1740485443802,-500.0,0.00065247,2]
[354426493,1740485443812,-500.0,0.00065347,2]
[354426494,1740485443822,-500.0,0.00065447,2]
[354426495,1740485443831,-500.0,0.00065547,2]
[354426496,1740485443841,-423.35770162,0.000656,2]
[354426497,1740485443850,-3000.0,0.000656,120]
[354426498,1740485443861,-500.0,0.00065647,2]
[354426499,1740485443872,-523.17,0.00065699,120]
[354426500,1740485443881,-523.17,0.00065699,120]
[354426501,1740485443891,-523.17,0.00065699,120]
[354426502,1740485443900,-523.17,0.00065699,120]
[354426503,1740485443910,-523.17,0.00065699,120]
[354426504,1740485443920,-523.17,0.00065699,120]
[354426505,1740485443929,-523.17,0.00065699,120]
[354426506,1740485443938,-523.17,0.00065699,120]
[354426507,1740485443947,-523.17,0.00065699,120]
[354426508,1740485443957,-523.17,0.00065699,120]
[354426509,1740485443966,-2000.0,0.000657,2]
[354426510,1740485443975,-200000.0,0.000657,120]
[354426511,1740485443985,-500.0,0.000657,120]
[354426513,1740485443995,-1086.37,0.000657,120]
[354426515,1740485444004,-620.96,0.000657,120]
[354426516,1740485444013,-956.7,0.000657,120]
[354426517,1740485444023,-156.454369,0.000657,120]
[354426518,1740485444032,-799.78,0.000657,120]
[354426519,1740485444041,-151.0,0.000657,120]
[354426520,1740485444050,-151.0,0.000657,120]
[354426521,1740485444060,-151.0,0.000657,120]
[354426522,1740485444069,-1100.17,0.000657,120]
[354426523,1740485444078,-151.0,0.000657,5]
[354426524,1740485444088,-500.0,0.000657,120]
[354426525,1740485444097,-2352.71,0.000657,120]
[354426526,1740485444108,-285.369546,0.000657,120]
[354426527,1740485444117,-499.0,0.00065742,120]
[354426528,1740485444127,-500.0,0.00065747,2]
[354426529,1740485444136,-503.36313524,0.00065751,120]
[354426530,1740485444145,-1665.91997687,0.00065752,14]
[354426531,1740485444155,-1000.0,0.00065752,120]
[354426532,1740485444164,-500.0,0.00065752,120]
[354426533,1740485444174,-577.64796051,0.00065753,120]
[354426534,1740485444183,-501.27627951,0.00065753,120]
[354426535,1740485444192,-500.49410889,0.00065753,120]
[354426536,1740485444202,-450.29929733,0.00065753,120]
[354426537,1740485444212,-501.59753312,0.00065753,120]
[354426538,1740485444221,-501.61167829,0.00065753,120]
[354426539,1740485444231,-230.0184065,0.00065753,120]
[354426540,1740485444240,-416.82732555,0.00065753,120]
[354426541,1740485444249,-500.0,0.00065753,120]
[354426542,1740485444259,-575.71,0.00065753,120]
[354426543,1740485444268,-500.0,0.00065753,120]
[354426544,1740485444277,-667.93,0.00065753,120]
[354426545,1740485444287,-500.0,0.00065753,120]
[354426546,1740485444297,-1932.56,0.00065753,120]
[354426547,1740485444307,-500.0,0.00065753,120]
[354426548,1740485444317,-500.0,0.00065753,120]
[354426549,1740485444327,-2499.96,0.00065753,120]
[354426550,1740485444337,-500.0,0.00065753,120]
[354426551,1740485444346,-3800.0,0.00065753,7]
[354426552,1740485444356,-500.0,0.00065753,120]
[354426553,1740485444365,-500.0,0.00065753,120]
[354426554,1740485444375,-500.0,0.00065753,120]
[354426555,1740485444384,-500.0,0.00065753,120]
[354426556,1740485444394,-500.0,0.00065753,120]
[354426557,1740485444404,-500.0,0.00065753,120]
[354426558,1740485444414,-500.0,0.00065753,120]
[354426559,1740485444424,-500.0,0.00065753,120]
[354426560,1740485444434,-500.0,0.00065753,120]
[354426561,1740485444443,-505.16043065,0.00065753,120]
[354426562,1740485444453,-500.0,0.00065753,120]
[354426563,1740485444463,-500.74867792,0.00065753,120]
[354426564,1740485444472,-500.0,0.00065753,120]
[354426566,1740485444482,-500.0,0.00065753,120]
[354426568,1740485444491,-642.59,0.00065753,120]
[354426569,1740485444500,-501.12570218,0.00065753,120]
[354426570,1740485444510,-500.0,0.00065753,120]
[354426571,1740485444519,-500.0,0.00065753,120]
[354426572,1740485444529,-501.32677922,0.00065753,120]
[354426573,1740485444538,-505.42808029,0.00065753,120]
[354426574,1740485444548,-500.0,0.00065753,120]
[354426575,1740485444558,-500.0,0.00065753,120]
[354426576,1740485444568,-500.51449109,0.00065753,120]
[354426577,1740485444577,-500.0,0.00065753,120]
[354426578,1740485444587,-500.0,0.00065753,120]
[354426579,1740485444596,-500.0,0.00065753,120]
[354426580,1740485444606,-500.0,0.00065753,120]
[354426581,1740485444616,-500.0,0.00065753,120]
[354426582,1740485444625,-501.27037701,0.00065753,120]
[354426583,1740485444634,-500.0,0.00065753,120]
[354426584,1740485444643,-500.72243863,0.00065753,120]
[354426585,1740485444652,-500.0,0.00065753,120]
[354426586,1740485444666,-1000.0,0.00065753,20]
[354426587,1740485444676,-500.0,0.00065753,120]
[354426588,1740485444685,-439.99659977,0.00065753,120]
[354426589,1740485444694,-502.05787935,0.00065753,120]
[354426590,1740485444705,-500.0,0.00065753,120]
[354426591,1740485444715,-500.0,0.00065753,120]
[354426592,1740485444725,-500.0,0.00065753,120]
[354426593,1740485444734,-513.00661305,0.00065753,120]
[354426594,1740485444745,-501.7049634,0.00065753,120]
[354426595,1740485444756,-501.49085734,0.00065753,120]
[354426596,1740485444765,-500.0,0.00065753,120]
[354426597,1740485444775,-500.0,0.00065753,120]
[354426598,1740485444784,-500.0,0.00065753,120]
[354426599,1740485444794,-775.9,0.00065753,120]
[354426600,1740485444803,-500.0,0.00065753,120]
[354426601,1740485444813,-500.0,0.00065753,120]
[354426602,1740485444823,-500.0,0.00065753,120]
[354426603,1740485444833,-599.97,0.00065753,120]
[354426604,1740485444842,-567.53,0.00065753,120]
[354426605,1740485444851,-500.0,0.00065753,120]
[354426606,1740485444864,-780.14,0.00065753,120]
[354426607,1740485444874,-500.0,0.00065753,120]
[354426608,1740485444883,-500.0,0.00065753,120]
[354426609,1740485444892,-500.0,0.00065753,120]
[354426610,1740485444902,-719.2,0.00065753,120]
[354426611,1740485444912,-741.1,0.00065753,120]
[354426612,1740485444923,-500.0,0.00065753,120]
[354426613,1740485444932,-500.0,0.00065753,120]
[354426614,1740485444941,-510.266812,0.00065753,120]
[354426615,1740485444951,-503.60466304,0.00065753,120]
[354426616,1740485444960,-511.63,0.00065753,120]
[354426617,1740485444970,-500.0,0.00065753,120]
[354426618,1740485444979,-500.0,0.00065753,120]
[354426619,1740485444988,-500.0,0.00065753,120]
[354426620,1740485444998,-829.35,0.00065753,120]
[354426621,1740485445009,-500.0,0.00065753,2]
[354426622,1740485445018,-500.0,0.00065753,120]
[354426623,1740485445028,-500.0,0.00065753,120]
[354426624,1740485445038,-925.38,0.00065753,120]
[354426625,1740485445048,-500.0,0.00065753,120]
[354426626,1740485445058,-568.8,0.00065753,120]
[354426627,1740485445147,-500.0,0.00065753,120]
[354426628,1740485445157,-500.0,0.00065753,120]
[354426629,1740485445167,-500.0,0.00065753,120]
[354426630,1740485445177,-500.0,0.00065753,120]
[354426631,1740485445187,-500.0,0.00065753,120]
[354426632,1740485445197,-500.0,0.00065753,120]
[354426633,1740485445206,-500.0,0.00065753,120]
[354426634,1740485445216,-503.01550066,0.00065753,120]
[354426635,1740485445226,-500.0,0.00065753,120]
[354426636,1740485445235,-600.0,0.00065753,120]
[354426637,1740485445245,-500.0,0.00065753,120]
[354426638,1740485445255,-500.0,0.00065753,120]
[354426639,1740485445264,-500.0,0.00065753,120]
[354426640,1740485445274,-500.0,0.00065753,120]
[354426641,1740485445284,-500.0,0.00065753,120]
[354426642,1740485445293,-500.0,0.00065753,120]
[354426643,1740485445303,-500.0,0.00065753,120]
[354426644,1740485445313,-500.0,0.00065753,120]
[354426645,1740485445323,-500.0,0.00065753,120]
[354426646,1740485445333,-500.0,0.00065753,120]
[354426647,1740485445342,-500.0,0.00065753,120]
[354426648,1740485445352,-500.0,0.00065753,120]
[354426649,1740485445364,-500.0,0.00065753,120]
[354426650,1740485445374,-500.0,0.00065753,120]
[354426651,1740485445383,-500.0,0.00065753,120]
[354426652,1740485445393,-500.0,0.00065753,120]
[354426653,1740485445403,-500.0,0.00065753,120]
[354426654,1740485445413,-500.0,0.00065753,120]
[354426655,1740485445422,-500.0,0.00065753,120]
[354426656,1740485445431,-500.0,0.00065753,120]
[354426657,1740485445442,-503.49569395,0.00065753,120]
[354426658,1740485445452,-500.0,0.00065753,120]
[354426659,1740485445461,-500.0,0.00065753,120]
[354426660,1740485445471,-500.0,0.00065753,120]
[354426661,1740485445480,-500.0,0.00065753,120]
[354426662,1740485445490,-500.0,0.00065753,120]
[354426663,1740485445500,-502.39664293,0.00065753,120]
[354426664,1740485445509,-500.0,0.00065753,120]
[354426665,1740485445518,-500.0,0.00065753,120]
[354426666,1740485445528,-500.0,0.00065753,120]
[354426667,1740485445537,-503.57051369,0.00065753,120]
[354426668,1740485445547,-500.0,0.00065753,120]
[354426669,1740485445556,-500.48,0.00065753,120]
[354426670,1740485445566,-500.0,0.00065753,120]
[354426671,1740485445575,-500.0,0.00065753,120]
[354426672,1740485445585,-500.0,0.00065753,120]
[354426673,1740485445594,-500.0,0.00065753,120]
[354426674,1740485445603,-500.0,0.00065753,120]
[354426675,1740485445614,-500.0,0.00065753,120]
[354426676,1740485445624,-501.9531668,0.00065753,120]
[354426677,1740485445633,-500.0,0.00065753,120]
[354426678,1740485445643,-500.0,0.00065753,120]
[354426679,1740485445652,-500.0,0.00065753,120]
[354426680,1740485445666,-500.0,0.00065753,120]
[354426681,1740485445676,-500.0,0.00065753,120]
[354426682,1740485445685,-500.0,0.00065753,30]
[354426683,1740485445695,-500.0,0.00065753,120]
[354426684,1740485445706,-500.0,0.00065753,120]
[354426685,1740485445715,-500.0,0.00065753,120]
[354426686,1740485445725,-500.0,0.00065753,120]
[354426687,1740485445735,-500.0,0.00065753,120]
[354426688,1740485445747,-500.0,0.00065753,120]
[354426689,1740485445757,-500.0,0.00065753,120]
[354426690,1740485445767,-500.0,0.00065753,120]
[354426691,1740485445776,-500.0,0.00065753,120]
[354426692,1740485445786,-500.0,0.00065753,120]
[354426693,1740485445796,-504.56142518,0.00065753,120]
[354426694,1740485445806,-500.0,0.00065753,120]
[354426695,1740485445817,-500.0,0.00065753,120]
[354426696,1740485445827,-500.0,0.00065753,120]
[354426697,1740485445838,-504.14601908,0.00065753,120]
[354426698,1740485445848,-502.15425456,0.00065753,120]
[354426699,1740485445860,-376.08965222,0.00065753,120]
[354426700,1740485445869,-753.15,0.00065753,120]
[354426701,1740485445879,-500.0,0.00065753,120]
[354426702,1740485445889,-503.53246869,0.00065753,120]
[354426703,1740485445898,-500.0,0.00065753,120]
[354426704,1740485445907,-500.0,0.00065753,120]
[354426705,1740485445917,-343.99234262,0.00065753,120]
[354426706,1740485445927,-493.49630779,0.00065753,120]
[354426707,1740485445936,-500.0,0.00065753,120]
[354426708,1740485445945,-2433.16,0.00065753,120]
[354426709,1740485445955,-500.0,0.00065753,120]
[354426710,1740485445964,-500.0,0.00065753,120]
[354426711,1740485445974,-8017.2,0.00065753,120]
[354426712,1740485445983,-1013.09,0.00065753,120]
[354426713,1740485445992,-1231.89,0.00065753,120]
[354426714,1740485446002,-509.37171209,0.00065753,120]
[354426715,1740485446011,-317.81353612,0.00065753,120]
[354426716,1740485446020,-501.65499714,0.00065753,120]
[354426717,1740485446030,-501.43703901,0.00065753,120]
[354426718,1740485446039,-500.0,0.00065753,120]
[354426720,1740485446048,-500.0,0.00065753,120]
[354426722,1740485446058,-500.0,0.00065753,120]
[354426724,1740485446067,-500.0,0.00065753,120]
[354426725,1740485446076,-500.0,0.00065753,120]
[354426726,1740485446085,-500.0,0.00065753,120]
[354426727,1740485446095,-501.57288007,0.00065753,120]
[354426728,1740485446104,-500.0,0.00065753,120]
[354426729,1740485446114,-500.0,0.00065753,120]
[354426730,1740485446123,-500.0,0.00065753,120]
[354426731,1740485446133,-500.0,0.00065753,120]
[354426732,1740485446142,-500.0,0.00065753,120]
[354426733,1740485446152,-1839.27,0.00065753,120]
[354426734,1740485446161,-5000.0,0.00065753,120]
[354426735,1740485446171,-5000.0,0.00065753,120]
[354426736,1740485446180,-2321.28393,0.00065753,120]
[354426737,1740485446190,-2605.66,0.00065753,120]
[354426738,1740485446200,-500.0,0.00065753,120]
[354426739,1740485446209,-1329.66,0.00065753,120]
[354426740,1740485446219,-14313.73,0.00065753,120]
[354426741,1740485446228,-1386.02,0.00065753,120]
[354426742,1740485446237,-500.0,0.00065753,120]
[354426743,1740485446246,-588.0,0.00065753,120]
[354426744,1740485446256,-831.48,0.00065753,120]
[354426745,1740485446266,-959.53,0.00065753,120]
[354426746,1740485446275,-500.0,0.00065753,120]
[354426747,1740485446285,-500.0,0.00065753,30]
[354426748,1740485446294,-857.59,0.00065753,120]
[354426749,1740485446304,-2706.68,0.00065753,3]
[354426750,1740485446314,-652.3,0.00065753,120]
[354426752,1740485446323,-5286.16,0.00065753,120]
[354426753,1740485446333,-843.41,0.00065753,120]
[354426754,1740485446344,-500.0,0.00065753,120]
[354426755,1740485446354,-500.0,0.00065753,120]
[354426757,1740485446365,-500.0,0.00065753,120]
[354426758,1740485446375,-718.43,0.00065753,120]
[354426760,1740485446384,-598.47,0.00065753,120]
[354426762,1740485446394,-299.87834805,0.00065753,120]
[354426764,1740485446405,-500.0,0.00065753,120]
[354426765,1740485446415,-500.0,0.00065753,120]
[354426766,1740485446425,-674.39,0.00065753,120]
[354426768,1740485446501,-596.18,0.00065753,120]
[354426769,1740485446521,-500.0,0.00065753,120]
[354426771,1740485446530,-500.0,0.00065753,120]
[354426772,1740485446540,-919.46,0.00065753,120]
[354426773,1740485446549,-19603.87691479,0.00065761,2]
[354426774,1740485446559,-639.23073795,0.00065773,15]
[354426775,1740485446568,-500.0,0.00065773,7]
[354426776,1740485446578,-504.57497193,0.00065773,15]
[354426777,1740485446587,-500.0,0.00065773,7]
[354426778,1740485446597,-500.0,0.00065773,15]
[354426779,1740485446607,-500.0,0.00065773,15]
[354426780,1740485446616,-588.34499133,0.00065773,7]
[354426781,1740485446626,-76067.37,0.000658,30]
[354426782,1740485446635,-1961.74,0.000658,30]
[354426783,1740485446644,-500.0,0.00065847,2]
[354426784,1740485446653,-500.0,0.00065947,2]
[354426785,1740485446668,-1000.0,0.00066026,120]
[354426786,1740485446677,-500.0,0.00066027,120]
[354426788,1740485446687,-500.0,0.00066027,120]
[354426789,1740485446696,-500.0,0.00066027,120]
[354426790,1740485446705,-1014.42,0.00066027,120]
[354426791,1740485446714,-500.0,0.00066027,120]
[354426792,1740485446724,-500.0,0.00066027,120]
[354426793,1740485446734,-500.0,0.00066027,120]
[354426795,1740485446744,-500.0,0.00066027,120]
[354426796,1740485446753,-500.0,0.00066027,120]
[354426797,1740485446762,-500.0,0.00066027,120]